bitfinex-derivatives/quotes_BTCF0:USTF0_20210108
["timestamp","ask_amount","ask_price","bid_price","bid_amount"]
[1610148241196,0.25195,40786.0,40752.0,0.11505]
[1610148242295,0.25195,40786.0,40762.0,0.13632608]
[1610148242494,0.25195,40786.0,40762.0,0.21829608]
[1610148243701,0.38057337,40787.0,40762.0,0.21829608]
[1610148244396,0.38057337,40787.0,40779.0,0.13632608]
[1610148244598,0.38057337,40787.0,40779.0,0.21632608]
[1610148247503,0.38057337,40787.0,40779.0,0.08]
[1610148248201,0.13632608,40780.0,40779.0,0.08]
[1610148248402,0.38057337,40787.0,40779.0,0.08]
[1610148249904,0.38057337,40787.0,40772.0,0.13632608]
[1610148250208,0.13632608,40769.0,40766.0,0.13632608]
[1610148251507,0.38057337,40787.0,40766.0,0.13632608]
[1610148251711,0.38057337,40787.0,40766.0,0.24158608]
[1610148252309,0.38057337,40787.0,40780.0,0.13632608]
[1610148254213,0.38057337,40787.0,40786.0,0.13632608]
[1610148254714,0.37057337,40787.0,40786.0,0.13632608]
[1610148255115,0.37057337,40787.0,40786.0,0.70452608]
[1610148260923,0.37057337,40787.0,40786.0,0.13632608]
[1610148264030,0.37057337,40787.0,40786.0,0.13656079]
[1610148267032,0.37057337,40787.0,40786.0,0.15309082]
[1610148271336,0.37057337,40787.0,40786.0,0.01676474]
[1610148272043,0.37057337,40787.0,40779.0,0.09343]
[1610148272044,0.37057337,40787.0,40780.0,0.01677217]
[1610148272237,0.50689945,40787.0,40786.0,0.01677256]
[1610148272539,0.50689945,40787.0,40781.0,0.01677415]
[1610148272836,0.50689945,40787.0,40782.0,0.00023479]
[1610148273239,0.50689945,40787.0,40781.0,0.00023482]
[1610148273436,0.50689945,40787.0,40783.0,0.00023482]
[1610148273636,0.50689945,40787.0,40782.0,0.00023482]
[1610148273939,0.50689945,40787.0,40784.0,0.00023485]
[1610148274338,0.50689945,40787.0,40783.0,0.00023485]
[1610148274537,0.50689945,40787.0,40785.0,0.00023485]
[1610148274838,0.50689945,40787.0,40784.0,0.00023485]
[1610148275138,0.50689945,40787.0,40786.0,0.00023485]
[1610148275337,0.50689945,40787.0,40785.0,0.00023482]
[1610148275638,0.50689945,40787.0,40786.0,0.00023482]
[1610148276038,0.50689945,40787.0,40776.0,0.01677974]
[1610148276238,0.37057337,40787.0,40783.0,0.13632608]
[1610148276442,0.37057337,40787.0,40786.0,0.0002348]
[1610148276640,0.37057337,40787.0,40783.0,0.13632608]
[1610148276842,0.37057337,40787.0,40786.0,0.0002348]
[1610148277140,0.37057337,40787.0,40784.0,0.01677684]
[1610148277440,0.37057337,40787.0,40786.0,0.0002423]
[1610148277639,0.37057337,40787.0,40776.0,0.01897795]
[1610148278042,0.37057337,40787.0,40786.0,0.00024232]
[1610148278339,0.13632608,40778.0,40777.0,0.00024234]
[1610148278641,0.13632608,40778.0,40776.0,0.01873563]
[1610148279040,0.13632608,40778.0,40776.0,0.00024238]
[1610148279242,0.13632608,40778.0,40777.0,0.00024238]
[1610148279941,0.13632608,40778.0,40776.0,0.00024238]
[1610148280141,0.13632608,40778.0,40777.0,0.00024238]
[1610148280641,0.13632608,40778.0,40776.0,0.00024238]
[1610148280843,0.13632608,40778.0,40777.0,0.00024238]
[1610148281443,0.13632608,40778.0,40776.0,0.01898928]
[1610148281644,0.13632608,40778.0,40777.0,0.00024238]
[1610148282253,0.13632608,40778.0,40768.0,0.01898945]
[1610148282546,0.13632608,40769.0,40767.0,0.01874731]
[1610148282844,0.13632608,40769.0,40768.0,0.01874726]
[1610148283045,0.13632608,40769.0,40768.0,0.01898964]
[1610148283245,0.13632608,40769.0,40760.0,0.01898952]
[1610148283446,0.13632608,40769.0,40768.0,0.01898952]
[1610148283747,0.13632608,40769.0,40761.0,0.09813791]
[1610148283945,0.37057337,40787.0,40768.0,0.01898706]
[1610148284348,0.13632608,40774.0,40769.0,0.13632608]
[1610148284645,0.13632608,40774.0,40769.0,0.15531346]
[1610148284848,0.13632608,40774.0,40770.0,0.01898789]
[1610148285549,0.37057337,40787.0,40770.0,0.01898789]
[1610148286347,0.13632608,40778.0,40770.0,0.01898789]
[1610148287350,0.13632608,40778.0,40771.0,0.00024234]
[1610148287853,0.13632608,40778.0,40772.0,0.00024233]
[1610148288051,0.13632608,40778.0,40771.0,0.00024233]
[1610148288251,0.13632608,40778.0,40773.0,0.00024231]
[1610148288450,0.37057337,40787.0,40777.0,0.13632608]
[1610148288750,0.37057337,40787.0,40778.0,0.01897837]
[1610148289852,0.37057337,40787.0,40778.0,0.09803837]
[1610148290353,0.37057337,40787.0,40786.0,0.13632608]
[1610148291052,0.37057337,40787.0,40786.0,0.15529643]
[1610148291753,0.37057337,40787.0,40786.0,0.01897035]
[1610148292353,0.50689945,40787.0,40786.0,0.01872811]
[1610148292552,0.50689945,40787.0,40779.0,0.01897829]
[1610148292752,0.50689945,40787.0,40786.0,0.01897759]
[1610148292952,0.50689945,40787.0,40778.0,0.07906]
[1610148292953,0.50689945,40787.0,40780.0,0.01897771]
[1610148293252,0.50689945,40787.0,40786.0,0.01897705]
[1610148293454,0.50689945,40787.0,40781.0,0.01897716]
[1610148293853,0.50689945,40787.0,40786.0,0.01897712]
[1610148294054,0.50689945,40787.0,40782.0,0.01897799]
[1610148294253,0.50689945,40787.0,40786.0,0.01897799]
[1610148294454,0.50689945,40787.0,40786.0,0.0002423]
[1610148294657,0.50689945,40787.0,40783.0,0.0189776]
[1610148294854,0.50689945,40787.0,40786.0,0.0002423]
[1610148295054,0.50689945,40787.0,40784.0,0.01897798]
[1610148295254,0.50689945,40787.0,40786.0,0.0002423]
[1610148295655,0.50689945,40787.0,40779.0,0.01897741]
[1610148295854,0.50689945,40787.0,40786.0,0.00024228]
[1610148296054,0.50689945,40787.0,40780.0,0.01897605]
[1610148296457,0.50689945,40787.0,40786.0,0.13632608]
[1610148296855,0.50689945,40787.0,40786.0,0.1553023]
[1610148301361,0.37057337,40787.0,40786.0,0.1553023]
[1610148301564,0.37057337,40787.0,40786.0,4.2432023]
[1610148302268,0.37057337,40787.0,40786.0,4.28421136]
[1610148303765,0.37057337,40787.0,40786.0,0.19631136]
[1610148303973,0.37057337,40787.0,40786.0,0.1553023]
[1610148305176,0.37057337,40787.0,40786.0,0.01897622]
[1610148305570,0.37057337,40787.0,40778.0,0.07906]
[1610148305571,0.37057337,40787.0,40779.0,0.01897425]
[1610148305971,0.37057337,40787.0,40786.0,0.01897626]
[1610148306169,0.37057337,40787.0,40780.0,0.01897906]
[1610148306374,0.37057337,40787.0,40786.0,0.01898017]
[1610148306772,0.37057337,40787.0,40768.0,0.13632608]
[1610148306773,0.37057337,40787.0,40781.0,0.0189811]
[1610148306972,0.37057337,40787.0,40786.0,0.00024232]
[1610148307173,0.37057337,40787.0,40782.0,0.00024234]
[1610148307474,0.37057337,40787.0,40786.0,0.00024234]
[1610148307674,0.37057337,40787.0,40769.0,0.01874109]
[1610148307675,0.37057337,40787.0,40783.0,0.00024234]
[1610148308076,0.37057337,40787.0,40769.0,0.01898343]
[1610148308275,0.45141337,40787.0,40784.0,0.00024234]
[1610148308476,0.13632608,40785.0,40770.0,0.00024234]
[1610148308877,0.13632608,40785.0,40762.0,0.01874494]
[1610148309075,0.13632608,40785.0,40771.0,0.00024237]
[1610148309277,0.13632608,40785.0,40763.0,0.01898886]
[1610148309678,4.0046,40776.0,40772.0,0.00024237]
[1610148309876,4.0046,40776.0,40771.0,0.01874655]
[1610148309877,4.0046,40776.0,40764.0,0.01898922]
[1610148310079,4.0046,40776.0,40773.0,0.0002424]
[1610148310379,4.0046,40776.0,40765.0,0.01899116]
[1610148310578,4.0046,40776.0,40752.0,0.11505]
[1610148310579,0.13632608,40774.0,40762.0,0.01874876]
[1610148310978,0.13632608,40774.0,40766.0,0.01899111]
[1610148311177,0.13632608,40774.0,40763.0,0.01899068]
[1610148311377,0.13632608,40774.0,40767.0,0.01899151]
[1610148311678,0.13632608,40774.0,40764.0,0.0189919]
[1610148311877,0.13632608,40774.0,40768.0,0.01899302]
[1610148312279,3.6029,40769.0,40762.0,0.01899511]
[1610148312481,0.13632608,40763.0,40752.0,0.11505]
[1610148312880,0.13632608,40763.0,40741.0,0.13632608]
[1610148313082,0.13632608,40763.0,40753.0,0.01899629]
[1610148313281,0.13632608,40763.0,40745.0,0.07974]
[1610148313482,0.13632608,40763.0,40754.0,0.01899842]
[1610148313782,0.13632608,40763.0,40755.0,0.00024245]
[1610148314185,0.13632608,40763.0,40755.0,0.01899872]
[1610148314385,0.13632608,40763.0,40746.0,0.01899876]
[1610148314585,0.08726,40764.0,40745.0,0.07974]
[1610148314788,0.08726,40764.0,40747.0,0.01899764]
[1610148315187,0.08726,40764.0,40746.0,0.43079265]
[1610148315385,0.08726,40764.0,40748.0,0.01898978]
[1610148315586,0.08726,40764.0,40748.0,0.0187474]
[1610148315786,0.45141337,40787.0,40748.0,4.0684]
[1610148315987,0.45141337,40787.0,40749.0,2.34109668]
[1610148316186,0.37057337,40787.0,40749.0,3.88213329]
[1610148316388,0.37057337,40787.0,40755.0,2.3183349]
[1610148316587,0.37057337,40787.0,40786.0,0.13632608]
[1610148316986,0.37057337,40787.0,40786.0,0.15529657]
[1610148317486,0.37057337,40787.0,40786.0,0.15529655]
[1610148317690,0.37057337,40787.0,40786.0,0.15553731]
[1610148318688,0.50689945,40787.0,40786.0,0.15553731]
[1610148319588,0.50689945,40787.0,40786.0,0.15553687]
[1610148321893,0.37057337,40787.0,40786.0,0.15553687]
[1610148329197,0.37057337,40787.0,40786.0,0.15529464]
[1610148334004,0.37057337,40787.0,40786.0,2.06449464]
[1610148334402,0.2978,40817.0,40786.0,2.06449464]
[1610148334601,0.13632608,40810.0,40786.0,2.06449464]
[1610148335102,0.13632608,40810.0,40787.0,1.51894678]
[1610148335502,0.13632608,40810.0,40788.0,0.01894632]
[1610148336603,0.13632608,40810.0,40799.0,0.22170608]
[1610148336903,0.13632608,40810.0,40799.0,0.22194815]
[1610148338505,0.13632608,40804.0,40799.0,0.22194815]
[1610148342709,0.13632608,40804.0,40799.0,0.24065647]
[1610148343511,0.2978,40817.0,40799.0,0.24065647]
[1610148344814,0.2978,40817.0,40799.0,3.20585647]
[1610148345417,0.2978,40817.0,40799.0,3.24682891]
[1610148346618,0.13632608,40811.0,40799.0,3.24682891]
[1610148348622,0.13632608,40805.0,40799.0,3.24682891]
[1610148348922,0.13632608,40805.0,40799.0,0.14530283]
[1610148349122,0.13632608,40805.0,40799.0,0.10433039]
[1610148350424,0.13632608,40805.0,40799.0,0.01895039]
[1610148350626,0.38632608,40800.0,40799.0,0.01895039]
[1610148350825,0.38632608,40800.0,40799.0,0.01870832]
[1610148351026,0.38632608,40800.0,40792.0,0.13632608]
[1610148351227,0.38632608,40800.0,40799.0,0.01901206]
[1610148351427,0.38632608,40800.0,40793.0,0.01901209]
[1610148351625,0.38632608,40800.0,40799.0,0.01901238]
[1610148352127,0.38632608,40800.0,40793.0,0.13670253]
[1610148352326,0.38632608,40800.0,40799.0,0.01901226]
[1610148352627,0.38632608,40800.0,40794.0,0.01901142]
[1610148352827,0.25,40800.0,40799.0,0.01901105]
[1610148353027,0.25,40800.0,40795.0,0.01901011]
[1610148353230,0.25,40800.0,40799.0,0.01900851]
[1610148353628,0.25,40800.0,40793.0,0.11769]
[1610148354131,0.25,40800.0,40794.0,0.01900609]
[1610148354530,0.25,40800.0,40799.0,0.13632608]
[1610148354929,0.25,40800.0,40799.0,0.15533098]
[1610148379670,0.25,40800.0,40799.0,0.0190049]
[1610148380172,0.25,40800.0,40794.0,0.01900193]
[1610148380375,0.25,40800.0,40793.0,0.11769]
[1610148380376,0.25,40800.0,40799.0,0.01900156]
[1610148380774,0.25,40800.0,40799.0,0.13632608]
[1610148381073,0.25,40800.0,40799.0,0.15532736]
[1610148391784,0.41276691,40800.0,40799.0,0.15532736]
[1610148397696,4.00286691,40800.0,40799.0,0.01900128]
[1610148398094,4.00286691,40800.0,40794.0,0.06005858]
[1610148398396,4.00286691,40800.0,40799.0,0.01900957]
[1610148398693,0.41276691,40800.0,40795.0,0.01900961]
[1610148398894,0.13632608,40796.0,40788.0,0.02530505]
[1610148399394,0.13632608,40796.0,40789.0,0.01901644]
[1610148400897,0.13632608,40790.0,40789.0,0.01901644]
[1610148401196,1.63632608,40790.0,40789.0,0.00024229]
[1610148401396,1.71360608,40790.0,40789.0,0.00024229]
[1610148401897,5.56750608,40790.0,40789.0,0.00024229]
[1610148402096,4.06750608,40790.0,40789.0,0.00024229]
[1610148403698,0.21360608,40790.0,40789.0,0.00024229]
[1610148403900,0.21360608,40790.0,40788.0,0.02530505]
[1610148404098,0.21360608,40790.0,40789.0,0.00024303]
[1610148406306,0.13632608,40790.0,40789.0,0.00024303]
[1610148409006,0.13632608,40790.0,40789.0,0.01912335]
[1610148409708,0.13632608,40790.0,40789.0,0.00024303]
[1610148411409,0.13632608,40790.0,40789.0,0.03374303]
[1610148411609,0.13632608,40790.0,40789.0,0.05262239]
[1610148412811,0.13632608,40790.0,40789.0,0.03374303]
[1610148413213,0.13632608,40790.0,40789.0,0.05262283]
[1610148414516,0.13632608,40790.0,40789.0,0.03374303]
[1610148417923,0.13632608,40790.0,40789.0,0.05262241]
[1610148418122,0.2816,40799.0,40789.0,0.05262241]
[1610148418421,0.41276691,40800.0,40789.0,0.05262241]
[1610148418622,0.41276691,40800.0,40790.0,0.01912045]
[1610148418921,0.41276691,40800.0,40798.0,0.13632608]
[1610148419422,0.41276691,40800.0,40799.0,0.01911558]
[1610148421023,0.54909299,40800.0,40799.0,0.01911558]
[1610148421223,0.54909299,40800.0,40796.0,0.0191151]
[1610148421624,0.54909299,40800.0,40799.0,0.00024271]
[1610148421825,0.54909299,40800.0,40797.0,0.01911755]
[1610148422025,0.54909299,40800.0,40799.0,0.00024271]
[1610148422325,0.54909299,40800.0,40795.0,0.10324]
[1610148422326,0.54909299,40800.0,40798.0,0.00024271]
[1610148422525,0.54909299,40800.0,40799.0,0.00024271]
[1610148423129,0.54909299,40800.0,40789.0,0.0335]
[1610148423130,0.54909299,40800.0,40796.0,0.00024273]
[1610148423327,0.54909299,40800.0,40799.0,0.00024273]
[1610148423628,0.54909299,40800.0,40797.0,0.00024271]
[1610148423928,0.54909299,40800.0,40799.0,2.98934269]
[1610148424129,0.54909299,40800.0,40799.0,2.9891]
[1610148424529,0.54909299,40800.0,40799.0,3.00821138]
[1610148425128,0.41276691,40800.0,40799.0,3.00821138]
[1610148425928,0.41276691,40800.0,40799.0,0.01911138]
[1610148426543,0.41276691,40800.0,40796.0,0.01911203]
[1610148426733,0.41276691,40800.0,40799.0,0.01887175]
[1610148427028,0.54909299,40800.0,40796.0,0.01911483]
[1610148427441,0.54909299,40800.0,40799.0,0.01911806]
[1610148427633,0.54909299,40800.0,40797.0,0.01911933]
[1610148427829,0.54909299,40800.0,40799.0,0.01912033]
[1610148428132,0.54909299,40800.0,40798.0,0.01912044]
[1610148428331,0.54909299,40800.0,40799.0,0.00024273]
[1610148428731,0.54909299,40800.0,40790.0,0.01912148]
[1610148428933,0.54909299,40800.0,40799.0,0.00024275]
[1610148429129,0.41276691,40800.0,40791.0,0.00024275]
[1610148429531,0.41276691,40800.0,40790.0,0.01912148]
[1610148429831,0.41276691,40800.0,40792.0,0.00024273]
[1610148430030,0.41276691,40800.0,40791.0,0.00024273]
[1610148430230,0.41276691,40800.0,40793.0,0.00024273]
[1610148430531,0.41276691,40800.0,40792.0,0.00024273]
[1610148430733,0.41276691,40800.0,40790.0,0.01912146]
[1610148431132,0.13632608,40793.0,40791.0,0.13632608]
[1610148431331,0.13632608,40793.0,40791.0,0.13656879]
[1610148431532,0.13632608,40793.0,40792.0,0.01911741]
[1610148432432,0.13632608,40793.0,40790.0,0.01911766]
[1610148432733,0.13632608,40793.0,40792.0,0.01911853]
[1610148432932,0.13632608,40793.0,40791.0,0.01911867]
[1610148433132,0.13632608,40793.0,40792.0,0.01911863]
[1610148433636,0.13632608,40793.0,40790.0,0.0191166]
[1610148434034,0.13632608,40793.0,40792.0,0.01911616]
[1610148434234,0.13632608,40793.0,40791.0,0.01911609]
[1610148434436,0.13632608,40793.0,40792.0,0.01911535]
[1610148435135,0.13632608,40793.0,40792.0,0.13632608]
[1610148435433,0.13632608,40793.0,40792.0,0.15544178]
[1610148435634,0.13632608,40793.0,40792.0,0.0191157]
[1610148436137,0.13632608,40793.0,40792.0,0.00024271]
[1610148436334,0.13632608,40793.0,40792.0,0.01911751]
[1610148436536,0.13632608,40793.0,40790.0,0.01911782]
[1610148436736,0.13632608,40793.0,40792.0,0.00024271]
[1610148436938,0.13632608,40793.0,40792.0,0.01911842]
[1610148437137,0.13632608,40793.0,40790.0,0.01911737]
[1610148437338,0.13632608,40793.0,40792.0,0.01911725]
[1610148437537,0.13632608,40793.0,40792.0,0.00024271]
[1610148437738,0.13632608,40793.0,40791.0,0.01911646]
[1610148437937,0.13632608,40793.0,40792.0,0.00024269]
[1610148438337,0.13632608,40793.0,40790.0,0.01911681]
[1610148438537,0.13632608,40793.0,40790.0,0.00024269]
[1610148445446,0.03,40792.0,40790.0,0.00024269]
[1610148446747,3.2538,40791.0,40790.0,0.00024269]
[1610148450256,0.03,40792.0,40790.0,0.00024269]
[1610148453855,0.03,40792.0,40790.0,0.12270867]
[1610148454255,0.03,40792.0,40791.0,0.01911571]
[1610148456256,0.03,40792.0,40791.0,0.47861571]
[1610148457158,0.03,40792.0,40791.0,0.61494179]
[1610148457958,0.03,40792.0,40791.0,0.65617657]
[1610148460161,0.03,40792.0,40791.0,0.19667657]
[1610148460660,0.03,40792.0,40791.0,0.15544179]
[1610148462062,0.03,40792.0,40791.0,0.01911571]
[1610148465164,0.03,40792.0,40791.0,0.15544179]
[1610148470573,0.03,40792.0,40791.0,0.01911571]
[1610148473175,0.03,40792.0,40791.0,0.15544179]
[1610148476581,0.03,40792.0,40791.0,0.01911571]
[1610148483892,0.03,40792.0,40791.0,3.35971571]
[1610148484492,0.41276691,40800.0,40791.0,3.35971571]
[1610148484493,0.41276691,40800.0,40791.0,3.40087862]
[1610148485195,0.41276691,40800.0,40792.0,0.06021428]
[1610148485392,0.41276691,40800.0,40799.0,0.23449608]
[1610148485692,0.41276691,40800.0,40799.0,0.71329608]
[1610148485893,0.41276691,40800.0,40799.0,0.73234892]
[1610148486093,0.41276691,40800.0,40799.0,0.77350794]
[1610148487692,0.41276691,40800.0,40799.0,0.29470794]
[1610148488192,0.41276691,40800.0,40799.0,0.25354892]
[1610148490095,0.31926691,40800.0,40799.0,0.25354892]
[1610148497707,0.31926691,40800.0,40799.0,0.11722284]
[1610148499510,0.31926691,40800.0,40799.0,0.67204892]
[1610148500210,0.31926691,40800.0,40799.0,0.71321692]
[1610148513630,0.31926691,40800.0,40799.0,0.29471692]
[1610148514030,0.31926691,40800.0,40799.0,0.25354892]
[1610148514230,0.31926691,40800.0,40799.0,0.11722284]
[1610148515631,0.45559299,40800.0,40799.0,0.11722284]
[1610148516532,0.45559299,40800.0,40799.0,3.41672284]
[1610148517135,0.45559299,40800.0,40799.0,3.45789638]
[1610148518238,0.45559299,40800.0,40799.0,0.15839638]
[1610148518739,0.45559299,40800.0,40799.0,0.11722284]
[1610148520442,0.89519299,40800.0,40799.0,0.11722284]
[1610148520642,0.89519299,40800.0,40799.0,0.0984125]
[1610148521141,0.45559299,40800.0,40799.0,0.0984125]
[1610148521941,0.45559299,40800.0,40799.0,0.11711769]
[1610148523746,0.45559299,40800.0,40799.0,0.52221769]
[1610148530856,0.45559299,40800.0,40799.0,0.56318756]
[1610148531059,0.31926691,40800.0,40799.0,0.56318756]
[1610148531756,0.31926691,40800.0,40799.0,0.69951364]
[1610148537664,0.31926691,40800.0,40799.0,0.29441364]
[1610148538163,0.31926691,40800.0,40799.0,0.25344377]
[1610148538464,0.31926691,40800.0,40799.0,0.11711769]
[1610148539467,0.31926691,40800.0,40799.0,3.90041769]
[1610148539666,0.31926691,40800.0,40799.0,3.94137955]
[1610148539868,0.31926691,40800.0,40799.0,0.29440563]
[1610148540268,0.31926691,40800.0,40799.0,0.25344377]
[1610148540968,0.31926691,40800.0,40799.0,3.14964377]
[1610148541469,0.31926691,40800.0,40799.0,3.19060638]
[1610148549374,0.31926691,40800.0,40799.0,0.29440638]
[1610148549973,0.31926691,40800.0,40799.0,0.25344377]
[1610148551274,0.31926691,40800.0,40799.0,3.70654377]
[1610148551874,0.31926691,40800.0,40799.0,3.74749876]
[1610148552876,0.2865,40833.0,40799.0,3.74749876]
[1610148553576,0.2865,40833.0,40800.0,0.059867]
[1610148553878,0.13632608,40823.0,40800.0,0.059867]
[1610148555779,0.13632608,40823.0,40808.0,0.13632608]
[1610148555982,0.13632608,40823.0,40800.0,0.059867]
[1610148556180,0.13632608,40823.0,40808.0,0.11747]
[1610148556880,0.13632608,40823.0,40810.0,0.01891901]
[1610148557081,0.13632608,40823.0,40809.0,0.01891932]
[1610148557283,0.13632608,40823.0,40811.0,0.01891866]
[1610148557682,0.13632608,40823.0,40810.0,0.01891745]
[1610148557883,0.2865,40833.0,40808.0,0.11747]
[1610148558082,0.2865,40833.0,40811.0,0.01891751]
[1610148558282,0.2865,40833.0,40813.0,0.3976]
[1610148558782,0.2865,40833.0,40814.0,0.01891621]
[1610148559886,0.13632608,40821.0,40814.0,0.01891621]
[1610148561286,0.13632608,40821.0,40820.0,3.3691]
[1610148561488,0.13632608,40821.0,40820.0,3.38801448]
[1610148562986,0.13632608,40821.0,40820.0,3.4100426]
[1610148563188,0.2865,40833.0,40820.0,3.4100426]
[1610148563688,0.2865,40833.0,40821.0,0.05985524]
[1610148563889,0.13632608,40825.0,40821.0,0.19618132]
[1610148564287,0.13632608,40825.0,40821.0,0.05985524]
[1610148564490,4.005,40824.0,40822.0,0.01891355]
[1610148564691,0.13632608,40825.0,40822.0,0.01891355]
[1610148564888,3.405,40823.0,40819.0,0.01891969]
[1610148565290,3.405,40823.0,40800.0,0.0409595]
[1610148565492,3.405,40823.0,40820.0,0.00024207]
[1610148565693,0.08506,40824.0,40800.0,0.01892524]
[1610148565893,0.13632608,40801.0,40800.0,0.01892524]
[1610148566094,0.13632608,40801.0,40793.0,0.04096273]
[1610148566294,0.13632608,40801.0,40790.0,0.10359]
[1610148566594,0.13632608,40801.0,40791.0,0.01892636]
[1610148566893,0.13632608,40801.0,40791.0,0.09785]
[1610148567192,0.13632608,40801.0,40792.0,0.01892802]
[1610148567996,0.13632608,40793.0,40792.0,0.01892802]
[1610148570298,0.13632608,40793.0,40792.0,0.01892808]
[1610148570996,0.13632608,40793.0,40792.0,0.0189347]
[1610148571196,0.13632608,40793.0,40792.0,0.01869254]
[1610148571398,0.13632608,40793.0,40792.0,0.0189347]
[1610148572800,3.59792608,40793.0,40792.0,0.0189347]
[1610148573000,0.13632608,40793.0,40792.0,0.0189347]
[1610148573501,0.13632608,40793.0,40792.0,0.00024216]
[1610148575303,0.13632608,40793.0,40792.0,3.76104012]
[1610148576805,0.13632608,40793.0,40792.0,3.74234216]
[1610148577404,0.13632608,40793.0,40792.0,0.00024216]
[1610148578105,0.13632608,40793.0,40792.0,0.50493885]
[1610148578506,0.13632608,40793.0,40792.0,0.01893885]
[1610148579508,0.13632608,40793.0,40792.0,0.00024216]
[1610148581713,0.13632608,40793.0,40792.0,0.0002422]
[1610148582014,0.13632608,40793.0,40790.0,0.00024222]
[1610148582515,0.13632608,40793.0,40791.0,0.00024222]
[1610148582914,0.24754608,40793.0,40792.0,0.00024224]
[1610148583313,0.24754608,40793.0,40789.0,0.00024224]
[1610148583715,0.24754608,40793.0,40792.0,0.00024226]
[1610148583916,0.24754608,40793.0,40790.0,0.00024226]
[1610148584116,1.74754608,40793.0,40792.0,0.00024226]
[1610148584317,5.61114608,40793.0,40792.0,0.00024226]
[1610148584518,5.61114608,40793.0,40788.0,0.02530505]
[1610148584519,5.61114608,40793.0,40791.0,0.00024226]
[1610148584717,5.61114608,40793.0,40788.0,0.02530505]
[1610148586117,4.11114608,40793.0,40789.0,0.00024273]
[1610148586319,0.24754608,40793.0,40789.0,0.00024273]
[1610148586925,0.4683,40790.0,40789.0,0.00024273]
[1610148590826,0.4683,40790.0,40788.0,0.02530505]
[1610148595527,1.9683,40790.0,40788.0,0.02530505]
[1610148595838,1.5,40790.0,40788.0,0.02530505]
[1610148596031,3.6466,40789.0,40788.0,0.02530505]
[1610148596233,5.1466,40789.0,40788.0,0.02530505]
[1610148596628,5.1466,40789.0,40724.0,2.37850899]
[1610148596830,5.1466,40789.0,40720.0,2.51761511]
[1610148596831,1.5,40789.0,40722.0,2.37829151]
[1610148597237,4.1116,40771.0,40723.0,0.06001451]
[1610148597435,5.72066,40771.0,40723.0,0.06001451]
[1610148597633,5.72066,40771.0,40723.0,0.1282675]
[1610148597837,5.72066,40771.0,40724.0,0.01896112]
[1610148598031,0.13632608,40725.0,40724.0,0.01896112]
[1610148598734,0.1108,40752.0,40724.0,0.01896112]
[1610148599333,0.1108,40752.0,40724.0,0.00024258]
[1610148600135,0.13632608,40725.0,40724.0,0.01896593]
[1610148600332,0.1108,40752.0,40724.0,0.01896593]
[1610148600632,0.1108,40752.0,40731.0,3.8968]
[1610148601032,0.2755,40769.0,40731.0,3.8968]
[1610148601533,0.2755,40769.0,40732.0,0.00024258]
[1610148601733,0.2755,40769.0,40732.0,0.10514258]
[1610148602132,0.2755,40769.0,40749.0,0.13632608]
[1610148602333,0.1569,40801.0,40749.0,0.13632608]
[1610148602534,0.1569,40801.0,40756.0,2.7755]
[1610148602734,0.2828,40790.0,40756.0,2.7755]
[1610148604140,0.2828,40790.0,40782.0,0.13632608]
[1610148604538,0.1569,40801.0,40782.0,0.13632608]
[1610148604742,0.4374,40825.0,40782.0,0.13632608]
[1610148606039,0.13632608,40797.0,40795.0,0.13632608]
[1610148607042,0.13632608,40797.0,40780.0,0.09622]
[1610148608143,0.13632608,40792.0,40780.0,0.09622]
[1610148608344,0.08749,40818.0,40780.0,0.09622]
[1610148609543,0.08749,40818.0,40773.0,0.13632608]
[1610148609945,0.08749,40818.0,40774.0,0.00024231]
[1610148610244,0.13632608,40798.0,40790.0,0.13632608]
[1610148610444,0.13632608,40798.0,40774.0,0.11226231]
[1610148610644,0.13632608,40798.0,40774.0,0.11202]
[1610148612148,0.13632608,40777.0,40774.0,0.11202]
[1610148613349,0.26318608,40777.0,40746.0,3.833]
[1610148613549,0.72578608,40777.0,40746.0,3.833]
[1610148613949,0.72578608,40777.0,40749.0,0.00024244]
[1610148614152,0.13632608,40750.0,40747.0,0.00024246]
[1610148614351,0.13632608,40750.0,40746.0,0.10371]
[1610148615554,0.13632608,40750.0,40732.0,0.1049]
[1610148615754,0.13632608,40750.0,40723.0,0.10931]
[1610148615953,0.13632608,40750.0,40733.0,0.00024259]
[1610148616153,0.07756,40759.0,40743.0,0.13632608]
[1610148616854,0.07756,40759.0,40744.0,0.00024256]
[1610148617458,0.11476,40768.0,40744.0,0.11064256]
[1610148617655,0.11476,40768.0,40744.0,0.1104]
[1610148617857,0.11476,40768.0,40745.0,0.00024254]
[1610148618156,0.13632608,40746.0,40745.0,0.13656862]
[1610148618356,0.13632608,40746.0,40744.0,0.1104]
[1610148619457,0.13632608,40746.0,40745.0,0.00024255]
[1610148620758,0.13632608,40746.0,40744.0,0.1104]
[1610148622060,0.13632608,40746.0,40745.0,0.00024259]
[1610148622460,0.13632608,40746.0,40745.0,0.08031259]
[1610148622660,0.13632608,40746.0,40745.0,0.08007]
[1610148622862,0.13632608,40746.0,40745.0,0.08031257]
[1610148629171,3.93842608,40746.0,40745.0,0.08031257]
[1610148630372,4.28506853,40746.0,40745.0,0.08031257]
[1610148632071,0.48296853,40746.0,40745.0,0.08031257]
[1610148632772,0.48296853,40746.0,40745.0,0.00024257]
[1610148633173,4.41406853,40746.0,40734.0,0.00024264]
[1610148633373,4.41406853,40746.0,40745.0,0.00024264]
[1610148633676,4.41406853,40746.0,40735.0,0.00024267]
[1610148633677,5.91406853,40746.0,40735.0,0.00024267]
[1610148633877,5.91406853,40746.0,40714.0,0.1177]
[1610148634074,5.91406853,40746.0,40736.0,0.00024269]
[1610148634374,0.13632608,40737.0,40715.0,0.00024269]
[1610148634575,0.13632608,40737.0,40714.0,0.1177]
[1610148634576,0.22995608,40737.0,40714.0,0.1177]
[1610148634782,0.5043,40735.0,40714.0,0.1177]
[1610148634976,0.5043,40735.0,40716.0,0.00024269]
[1610148635176,0.5043,40735.0,40715.0,0.00024269]
[1610148635377,0.5043,40735.0,40717.0,0.00024269]
[1610148635778,0.5043,40735.0,40716.0,0.00024269]
[1610148635977,0.5043,40735.0,40718.0,0.00024269]
[1610148636181,0.13632608,40719.0,40717.0,0.00024267]
[1610148636477,0.34664245,40746.0,40719.0,0.00024267]
[1610148636677,0.34664245,40746.0,40718.0,0.00024263]
[1610148637078,0.34664245,40746.0,40716.0,0.01896805]
[1610148637382,0.34664245,40746.0,40719.0,0.00024261]
[1610148637586,0.34664245,40746.0,40716.0,0.01872544]
[1610148637587,0.34664245,40746.0,40717.0,0.00024261]
[1610148637779,0.34664245,40746.0,40716.0,0.01896805]
[1610148638178,0.13632608,40719.0,40718.0,0.00024261]
[1610148638379,0.13632608,40719.0,40717.0,0.00024261]
[1610148638579,0.34664245,40746.0,40719.0,0.00024261]
[1610148638781,0.34664245,40746.0,40724.0,0.13632608]
[1610148639179,0.34664245,40746.0,40724.0,0.22973608]